fUSD/lending_fUSD_20251220
["ID","MTS","AMOUNT","RATE_DAILY","PERIOD"]
[399244345,1766200718835,-500.0,0.0001051,2]
[399244346,1766200718867,-500.0,0.0001051,2]
[399244347,1766200718898,-500.0,0.0001051,2]
[399244348,1766200718928,-500.0,0.0001051,2]
[399244349,1766200718960,-500.0,0.0001051,2]
[399244350,1766200718996,-500.0,0.0001051,2]
[399244351,1766200719027,-500.0,0.0001051,2]
[399244352,1766200719062,-500.0,0.0001051,2]
[399244353,1766200719094,-288.18453172,0.0001051,2]
[399244354,1766200719171,-211.81546828,0.0001051,2]
[399244355,1766200719202,-251.13336417,0.0001051,2]
[399244356,1766200719237,-500.0,0.0001051,2]
[399244357,1766200719268,-500.0,0.0001051,2]
[399244358,1766200719298,-500.0,0.0001051,2]
[399244359,1766200719328,-500.0,0.0001051,2]
[399244360,1766200719358,-500.0,0.0001051,2]
[399244361,1766200719388,-500.0,0.0001051,2]
[399244362,1766200719418,-500.0,0.0001051,2]
[399244363,1766200719455,-500.0,0.0001051,2]
[399244364,1766200719485,-500.0,0.0001051,2]
[399244365,1766200719788,-251.13336417,0.0001051,2]
[399244366,1766200719802,-74.1123351,0.0001051,2]
[399244367,1766200726898,-174.75430073,0.0001051,2]
[399244368,1766200726930,-500.0,0.0001051,2]
[399244369,1766200726960,-500.0,0.0001051,2]
[399244370,1766200726990,-500.0,0.0001051,2]
[399244371,1766200727020,-350.0,0.0001051,2]
[399244372,1766200727050,-500.0,0.0001051,2]
[399244373,1766200727080,-500.0,0.0001051,2]
[399244374,1766200727110,-500.0,0.0001051,2]
[399244375,1766200727242,-2950.50139854,0.0001051,2]
[399244376,1766200736407,-1575.48062446,0.0001051,2]
[399244377,1766200736436,-150.0,0.0001051,2]
[399244378,1766200736464,-1200.0,0.0001051,2]
[399244379,1766200736491,-153.59692509,0.0001051,2]
[399244380,1766200736518,-500.0,0.0001051,2]
[399244381,1766200736608,-2841.8549009,0.00010511,2]
[399244382,1766200742687,-10000.01,0.00010511,2]
[399244386,1766200749639,-1112.3072122,0.00010411,2]
[399244387,1766200749675,-7775.3955756,0.00010511,2]
[399244393,1766200787437,512.22,0.00015,3]
[399244402,1766200869996,-236.0,0.00010499,2]
[399244403,1766200870025,-250.0,0.00010499,2]
[399244404,1766200870054,-3539.10319639,0.00010499,2]
[399244405,1766200870083,-193.32148663,0.0001051,2]
[399244406,1766200870113,-300.0,0.0001051,2]
[399244407,1766200870207,-963.16063396,0.0001051,2]
[399244408,1766200870245,-236.83936604,0.0001051,2]
[399244409,1766200870277,-150.0,0.0001051,2]
[399244410,1766200870329,-9226.33126792,0.00010511,2]
[399244411,1766200870355,-10000.01,0.00010511,2]
[399244412,1766200870455,-10000.01,0.00010511,2]
[399244413,1766200870580,-10000.01,0.00010511,2]
[399244414,1766200870697,-10000.01,0.00010511,2]
[399244415,1766200876043,-10000.01,0.00010511,2]
[399244416,1766200885511,-10000.01,0.00010511,2]
[399244417,1766200885556,-10000.01,0.00010511,2]
[399244418,1766200885570,-10000.01,0.00010511,2]
[399244419,1766200885620,-10000.01,0.00010511,2]
[399244420,1766200885775,-10000.01,0.00010511,2]
[399244433,1766201004861,25000.0,0.00012893,3]
[399244434,1766201014289,158.96505009,0.0001516,7]
[399244435,1766201024258,25000.0,0.00012884,3]
[399244438,1766201043704,8267.78043294,0.00012875,3]
[399244439,1766201043739,16732.21956706,0.00012875,3]
[399244442,1766201063096,25000.0,0.00012866,3]
[399244443,1766201082498,6237.30556818,0.00012858,3]
[399244444,1766201082523,18762.69443182,0.00012858,3]
[399244448,1766201101983,25000.0,0.00012849,3]
[399244460,1766201121384,25000.0,0.0001284,3]
[399244491,1766201252725,5525.0,0.00014,5]
[399244533,1766201406352,-3383.5,5.238e-05,2]
[399244534,1766201406382,-250.0,5.376e-05,2]
[399244535,1766201406454,-2733.01,5.514e-05,2]
[399244536,1766201406542,-650.49,5.514e-05,2]
[399244537,1766201406572,-250.0,5.679e-05,2]
[399244538,1766201406601,-1200.0,5.761e-05,2]
[399244539,1766201406632,-250.0,5.762e-05,2]
[399244540,1766201406660,-194.14005123,5.762e-05,2]
[399244541,1766201406688,-1200.0,5.789e-05,2]
[399244542,1766201406716,-300.0,5.789e-05,2]
[399244543,1766201406744,-300.0,5.789e-05,2]
[399244544,1766201406838,-3383.5,5.79e-05,2]
[399244545,1766201406957,-3383.5,6.065e-05,2]
[399244546,1766201406991,-1553.01,6.337e-05,2]
[399244547,1766201407100,-126.99,6.337e-05,2]
[399244548,1766201407130,-3383.5,6.341e-05,2]
[399244549,1766201407166,-1299.03,6.368e-05,2]
[399244550,1766201407234,-380.97,6.368e-05,2]
[399244551,1766201407263,-420.0,6.368e-05,2]
[399244552,1766201407293,-420.0,6.368e-05,2]
[399244553,1766201407321,-281.0,6.575e-05,2]
[399244554,1766201407349,-417.0,6.588e-05,2]
[399244555,1766201407377,-219.0,6.601e-05,2]
[399244556,1766201407405,-294.0,6.614e-05,2]
[399244557,1766201407433,-1752.57,6.617e-05,2]
[399244558,1766201407579,-867.17989754,6.617e-05,2]
[399244559,1766201407593,-380.97,6.617e-05,2]
[399244560,1766201407612,-382.78010246,6.617e-05,2]
[399244561,1766201407622,-37.21989754,6.635e-05,2]
[399244562,1766201407635,-420.0,6.635e-05,2]
[399244563,1766201407673,-281.0,6.635e-05,2]
[399244564,1766201407692,-417.0,6.635e-05,2]
[399244565,1766201407723,-219.0,6.635e-05,2]
[399244566,1766201407736,-294.0,6.635e-05,2]
[399244567,1766201407749,-13.78010246,6.635e-05,2]
[399244568,1766201407762,-1995.0,6.648e-05,2]
[399244569,1766201407771,-1374.71989754,6.662e-05,2]
[399244580,1766201413094,-446.28010246,6.662e-05,2]
[399244581,1766201413122,-1317.33308452,6.675e-05,2]
[399244582,1766201413149,-3089.28362604,6.892e-05,2]
[399244583,1766201413459,-294.21637396,6.892e-05,2]
[399244584,1766201413487,-2351.0,6.971e-05,2]
[399244585,1766201413514,-250.0,7.002e-05,2]
[399244586,1766201413542,-1414.0,7.004e-05,2]
[399244587,1766201413571,-587.0,7.004e-05,2]
[399244588,1766201413654,-587.0,7.004e-05,2]
[399244589,1766201413682,-3383.5,7.168e-05,2]
[399244590,1766201413710,-559.01,7.21e-05,2]
[399244591,1766201413864,-940.99,7.21e-05,2]
[399244592,1766201413893,-302.0,7.22e-05,2]
[399244593,1766201413922,-150.0,7.22e-05,2]
[399244594,1766201413950,-172.0,7.235e-05,2]
[399244595,1766201413979,-467.0,7.249e-05,2]
[399244596,1766201414007,-224.0,7.264e-05,2]
[399244597,1766201414035,-165.0,7.278e-05,2]
[399244598,1766201414225,-302.0,7.281e-05,2]
[399244599,1766201414241,-150.0,7.281e-05,2]
[399244600,1766201414264,-172.0,7.281e-05,2]
[399244601,1766201414279,-467.0,7.281e-05,2]
[399244602,1766201414296,-224.0,7.281e-05,2]
[399244603,1766201414314,-165.0,7.281e-05,2]
[399244604,1766201414342,-4208.74,7.281e-05,2]
[399244605,1766201414351,-293.0,7.292e-05,2]
[399244606,1766201414360,-426.0,7.307e-05,2]
[399244607,1766201414369,-158.0,7.321e-05,2]
[399244608,1766201414378,-72.29,7.336e-05,2]
[399244620,1766201419926,-103.71,7.336e-05,2]
[399244621,1766201419957,-500.0,7.443e-05,2]
[399244622,1766201419989,-395.49944272,7.443e-05,2]
[399244623,1766201420020,-500.0,7.443e-05,2]
[399244624,1766201420052,-500.0,7.443e-05,2]
[399244625,1766201420083,-500.0,7.443e-05,2]
[399244626,1766201420113,-500.0,7.443e-05,2]
[399244627,1766201420143,-500.0,7.443e-05,2]
[399244628,1766201420263,-3383.5,7.444e-05,2]
[399244629,1766201420290,-1461.0,7.471e-05,2]
[399244630,1766201420317,-144.35,7.484e-05,2]
[399244631,1766201420446,-22.31,7.484e-05,2]
[399244632,1766201420475,-377.0,7.486e-05,2]
[399244633,1766201420503,-1007.0,7.501e-05,2]
[399244634,1766201420530,-1893.0,7.516e-05,2]
[399244635,1766201420557,-1239.0,7.531e-05,2]
[399244636,1766201420587,-381.0,7.545e-05,2]
[399244637,1766201420811,-505.0,7.56e-05,2]
[399244638,1766201420821,-908.97,7.668e-05,2]
[399244639,1766201420841,-1239.0,7.668e-05,2]
[399244640,1766201420859,-381.0,7.668e-05,2]
[399244641,1766201420892,-161.39,7.668e-05,2]
[399244666,1766201431950,-601.64,7.668e-05,2]
[399244667,1766201431959,-823.0,7.705e-05,2]
[399244668,1766201431968,-823.0,7.705e-05,2]
[399244669,1766201431978,-552.36,7.72e-05,2]
[399244670,1766201431989,-2831.14,7.72e-05,2]
[399244671,1766201431998,-166.66,7.732e-05,2]
[399244672,1766201432008,-255.0,7.942e-05,2]
[399244673,1766201432017,-963.141287,7.945e-05,2]
[399244674,1766201432026,-166.66,7.979e-05,2]
[399244675,1766201432035,-3383.5,7.995e-05,2]
[399244676,1766201432045,-500.0,8.219e-05,2]
[399244677,1766201432055,-166.66,8.226e-05,2]
[399244678,1766201432064,-3383.5,8.271e-05,2]
[399244679,1766201432073,-1492.0,8.435e-05,2]
[399244680,1766201432083,-166.66,8.473e-05,2]
[399244681,1766201432092,-1152.0,8.475e-05,2]
[399244682,1766201432102,-1152.0,8.475e-05,2]
[399244683,1766201432111,-500.0,8.493e-05,2]
[399244684,1766201432120,-3383.5,8.547e-05,2]
[399244685,1766201432131,-166.66,8.72e-05,2]
[399244686,1766201432141,-433.0,8.736e-05,2]
[399244687,1766201432152,-500.0,8.767e-05,2]
[399244688,1766201432161,-11988.21,8.807e-05,2]
[399244690,1766201432171,-500.0,8.821e-05,2]
[399244691,1766201432181,-224.4531979,8.821e-05,2]
[399244692,1766201432191,-191.04800042,8.821e-05,2]
[399244693,1766201432202,-3383.5,8.822e-05,2]
[399244694,1766201432211,-369.35,8.967e-05,2]
[399244695,1766201432220,-500.0,9.041e-05,2]
[399244696,1766201432232,-3383.5,9.098e-05,2]
[399244697,1766201432241,-500.0,9.315e-05,2]
[399244698,1766201432251,-266.0,9.323e-05,2]
[399244699,1766201432261,-721.0,9.323e-05,2]
[399244700,1766201432271,-3383.5,9.374e-05,2]
[399244701,1766201432280,-500.0,9.589e-05,2]
[399244702,1766201432290,-736.0,9.61e-05,2]
[399244703,1766201432299,-3383.5,9.649e-05,2]
[399244704,1766201432308,-500.0,9.863e-05,2]
[399244705,1766201432318,-3383.5,9.925e-05,2]
[399244707,1766201432327,-500.0,0.00010137,2]
[399244709,1766201432336,-3383.5,0.00010201,2]
[399244711,1766201432345,-1600.0,0.0001035,2]
[399244713,1766201432355,-500.0,0.00010411,2]
[399244716,1766201432364,-197.64230935,0.00010411,2]
[399244718,1766201432374,-1040.51342255,0.00010411,2]
[399244719,1766201432383,-640.24104384,0.00010411,2]
[399244721,1766201432392,-3383.5,0.00010477,2]
[399244724,1766201432401,-200.0,0.00010505,2]
[399244726,1766201432410,-151.0,0.00010505,2]
[399244728,1766201432419,-151.0,0.00010505,2]
[399244730,1766201432428,-151.0,0.00010505,2]
[399244732,1766201432437,-151.0,0.00010505,2]
[399244734,1766201432446,-151.0,0.00010505,2]
[399244735,1766201432455,-151.0,0.00010505,2]
[399244736,1766201432466,-151.0,0.00010505,2]
[399244737,1766201432476,-151.0,0.00010505,2]
[399244738,1766201432485,-151.0,0.00010505,2]
[399244739,1766201432505,-151.0,0.00010505,2]
[399244740,1766201432515,-151.0,0.00010505,2]
[399244741,1766201432524,-151.0,0.00010505,2]
[399244742,1766201432533,-151.0,0.00010505,2]
[399244743,1766201432543,-151.0,0.00010505,2]
[399244744,1766201432552,-174.17489767,0.00010505,2]
[399244745,1766201432562,-151.0,0.00010505,2]
[399244746,1766201432572,-151.0,0.00010505,2]
[399244747,1766201432583,-151.0,0.00010505,2]
[399244748,1766201432593,-151.0,0.00010505,2]
[399244749,1766201432602,-151.0,0.00010505,2]
[399244750,1766201432611,-500.0,0.00010505,2]
[399244751,1766201432621,-151.0,0.00010505,2]
[399244752,1766201432630,-500.0,0.00010505,2]
[399244753,1766201432639,-500.0,0.00010505,2]
[399244754,1766201432648,-500.0,0.00010505,2]
[399244755,1766201432657,-500.0,0.00010505,2]
[399244756,1766201432666,-500.0,0.00010505,2]
[399244757,1766201432675,-500.0,0.00010505,2]
[399244758,1766201432684,-500.0,0.00010505,2]
[399244759,1766201432693,-500.0,0.00010505,2]
[399244760,1766201432709,-500.0,0.00010505,2]
[399244761,1766201432718,-500.0,0.00010505,2]
[399244762,1766201432728,-500.0,0.00010505,2]
[399244763,1766201432738,-275.47469505,0.00010505,2]
[399244764,1766201432749,-200.0,0.00010505,2]
[399244765,1766201432758,-200.0,0.00010505,2]
[399244766,1766201432768,-500.0,0.00010505,2]
[399244767,1766201432779,-500.0,0.00010505,2]
[399244768,1766201432789,-500.0,0.00010505,2]
[399244769,1766201432799,-500.0,0.00010505,2]
[399244770,1766201432808,-500.0,0.00010505,2]
[399244771,1766201432817,-500.0,0.00010505,2]
[399244772,1766201432829,-151.0,0.00010505,2]
[399244773,1766201432840,-500.0,0.00010505,2]
[399244774,1766201432850,-151.0,0.00010505,2]
[399244775,1766201432859,-500.0,0.00010505,2]
[399244776,1766201432869,-151.0,0.00010505,2]
[399244777,1766201432878,-500.0,0.00010505,2]
[399244778,1766201432887,-151.0,0.00010505,2]
[399244779,1766201432896,-500.0,0.00010505,2]
[399244780,1766201432906,-151.0,0.00010505,2]
[399244781,1766201432915,-500.0,0.00010505,2]
[399244782,1766201432924,-151.0,0.00010505,2]
[399244783,1766201432933,-175.64781923,0.00010505,2]
[399244784,1766201432942,-151.0,0.00010505,2]
[399244785,1766201432951,-151.0,0.00010505,2]
[399244786,1766201432959,-151.0,0.00010505,2]
[399244787,1766201432969,-151.0,0.00010505,2]
[399244788,1766201432978,-151.0,0.00010505,2]
[399244789,1766201432988,-13896.6820703,0.0001051,2]
[399244790,1766201432997,-351128.2532265,0.0001051,2]
[399244791,1766201433006,-466028.18379624,0.00010511,2]
[399244792,1766201433020,-37920.05466176,0.00010511,2]
[399244793,1766201433029,-3037.1379011,0.00010511,2]
[399244794,1766201433039,-1000.0,0.00010511,2]
[399244795,1766201433052,-364.97921706,0.00010511,2]
[399244796,1766201433061,-1252.0,0.0001057,2]
[399244797,1766201433071,-1000.0,0.00010593,2]
[399244798,1766201433081,-218.82,0.00010595,2]
[399244799,1766201433090,-200.0,0.00010609,2]
[399244800,1766201433099,-500.0,0.00010685,2]
[399244801,1766201433109,-1040.51342255,0.00010705,2]
[399244802,1766201433120,-200.0,0.00010715,2]
[399244803,1766201433130,-200.0,0.00010822,2]
[399244804,1766201433139,-200.0,0.0001093,2]
[399244805,1766201433148,-500.0,0.00010959,2]
[399244806,1766201433161,-1040.51342255,0.00010999,2]
[399244807,1766201433171,-150.0,0.00011011,2]
[399244808,1766201433180,-200.0,0.0001104,2]
[399244809,1766201433190,-200.0,0.00011053,2]
[399244810,1766201433199,-500.0,0.00011053,2]
[399244811,1766201433209,-200.0,0.00011053,2]
[399244812,1766201433219,-7940.93008213,0.00011099,2]
[399244813,1766201433231,-34448.78238973,0.00011099,2]
[399244814,1766201433241,-32591.20521854,0.00011099,2]
[399244815,1766201433252,-32591.20521854,0.00011132,2]
[399244816,1766201433263,-42389.71247181,0.00011132,2]
[399244817,1766201433273,-2218.72,0.00011148,2]
[399244818,1766201433282,-500.0,0.00011233,2]
[399244819,1766201433292,-1000.0,0.00011259,2]
[399244820,1766201433301,-13310.18,0.00011266,2]
[399244821,1766201433311,-2218.72,0.00011422,2]
[399244822,1766201433320,-640.24104381,0.00011493,2]
[399244823,1766201433330,-536.45390534,0.00011507,2]
[399244824,1766201433340,-1000.0,0.00011558,2]
[399244825,1766201433350,-200.0,0.00011601,2]
[399244826,1766201433359,-500.0,0.00011601,2]
[399244827,1766201433370,-200.0,0.00011601,2]
[399244828,1766201433380,-1257.0,0.00011631,2]
[399244829,1766201433391,-1600.0,0.00011644,2]
[399244830,1766201433400,-2218.72,0.00011696,2]
[399244831,1766201433410,-1002.15082385,0.00011783,2]
[399244832,1766201433419,-2032.51847287,0.00011843,2]
[399244833,1766201433430,-32591.20521854,0.00011853,2]
[399244834,1766201433443,-9578.53237922,0.00011853,2]
[399244835,1766201433457,-32811.18009259,0.00011853,2]
[399244836,1766201433466,-34073.73636981,0.00011864,2]
[399244837,1766201433508,-2063.82748352,0.00011864,2]
[399244842,1766201437963,-1199.44426882,0.00011864,2]
[399244843,1766201437974,-11995.42433858,0.00011864,2]
[399244844,1766201437985,-29014.87091427,0.00011864,2]
[399244845,1766201437995,-1000.0,0.00011917,2]
[399244846,1766201438004,-2218.72,0.0001197,2]
[399244847,1766201438013,-2123.90908323,0.00012115,2]
[399244848,1766201438024,-1260.78888652,0.00012115,2]
[399244849,1766201438035,-450.58499,0.00012115,2]
[399244850,1766201438046,-1733.86308309,0.00012115,2]
[399244851,1766201438057,-309.60591375,0.00012115,2]
[399244852,1766201438069,-5852.60752696,0.00012115,2]
[399244853,1766201438078,-200.0,0.00012149,2]
[399244854,1766201438088,-500.0,0.00012149,2]
[399244855,1766201438098,-200.0,0.00012149,2]
[399244856,1766201438107,-17481.6463492,0.00012167,2]
[399244857,1766201438116,-2218.72,0.00012244,2]
[399244858,1766201438125,-3100.7688958,0.00012284,2]
[399244859,1766201438135,-1009.8830936,0.00012484,2]
[399244860,1766201438144,-306.41389283,0.000125,2]
[399244861,1766201438153,-2218.72,0.00012518,2]
[399244862,1766201438162,-32591.20521854,0.00012574,2]
[399244863,1766201438171,-42389.71247181,0.00012574,2]
[399244864,1766201438180,-640.24104381,0.00012574,2]
[399244865,1766201438189,-691.8750603,0.00012679,2]
[399244866,1766201438198,-200.0,0.00012697,2]
[399244867,1766201438207,-500.0,0.00012697,2]
[399244868,1766201438216,-200.0,0.00012697,2]
[399244869,1766201438226,-1243.23297123,0.00012708,2]
[399244870,1766201438235,-112446.0511536,0.00012789,2]
[399244871,1766201438244,-2218.72,0.00012792,2]
[399244873,1766201438508,-225.3353764,0.00012925,2]
[399244874,1766201438518,-1600.0,0.00012938,2]
[399244875,1766201438527,-106593.69283938,0.0001299,2]
[399244876,1766201438536,-2218.72,0.00013066,2]
[399244877,1766201438545,-1000.0,0.00013241,2]
[399244878,1766201438555,-207.4,0.00013244,2]
[399244879,1766201438564,-200.0,0.00013245,2]
[399244880,1766201438574,-500.0,0.00013245,2]
[399244881,1766201438586,-200.0,0.00013245,2]
[399244882,1766201438595,-32591.20521854,0.00013295,2]
[399244883,1766201438604,-42389.71247181,0.00013295,2]
[399244884,1766201438614,-25090.1054019,0.00013297,2]
[399244885,1766201438623,-2218.72,0.0001334,2]
[399244886,1766201438632,-1000.0,0.000135,2]
[399244887,1766201438641,-2218.72,0.00013614,2]
[399244888,1766201438650,-640.24104381,0.00013656,2]
[399244889,1766201438662,-244.51516293,0.00013673,2]
[399244890,1766201438671,-151.0,0.00013695,2]
[399244891,1766201438680,-511.85238157,0.00013698,2]
[399244892,1766201438689,-500.0,0.00013698,2]
[399244893,1766201438698,-500.0,0.00013698,2]
[399244894,1766201438707,-500.0,0.00013698,2]
[399244895,1766201438716,-358.06023536,0.00013698,2]
[399244896,1766201438725,-510.18,0.00013698,2]
[399244897,1766201438734,-510.18,0.00013698,2]
[399244898,1766201438743,-510.18,0.00013698,2]
[399244899,1766201438753,-510.18,0.00013698,2]
[399244900,1766201438762,-510.18,0.00013698,2]
[399244901,1766201438772,-510.18,0.00013698,2]
[399244902,1766201438781,-500.0,0.00013698,2]
[399244903,1766201438791,-500.0,0.00013698,2]
[399244904,1766201438800,-500.0,0.00013698,2]
[399244905,1766201438810,-500.0,0.00013698,2]
[399244906,1766201438819,-500.0,0.00013698,2]
[399244907,1766201438828,-500.0,0.00013698,2]
[399244908,1766201438836,-500.0,0.00013698,2]
[399244909,1766201438845,-500.0,0.00013698,2]
[399244910,1766201438853,-500.0,0.00013698,2]
[399244911,1766201438863,-500.0,0.00013698,2]
[399244912,1766201438872,-500.0,0.00013698,2]
[399244913,1766201438881,-500.0,0.00013698,2]
[399244914,1766201438891,-500.0,0.00013698,2]
[399244915,1766201438900,-500.0,0.00013698,2]
[399244916,1766201438909,-500.0,0.00013698,2]
[399244917,1766201438919,-500.0,0.00013698,2]
[399244918,1766201438929,-500.0,0.00013698,2]
[399244919,1766201438939,-500.0,0.00013698,2]
[399244920,1766201438948,-500.0,0.00013698,2]
[399244921,1766201438957,-500.0,0.00013698,2]
[399244922,1766201438967,-500.0,0.00013698,2]
[399244923,1766201438976,-500.0,0.00013698,2]
[399244924,1766201438985,-502.93074974,0.00013698,2]
[399244925,1766201438995,-500.0,0.00013698,2]
[399244926,1766201439005,-500.0,0.00013698,2]
[399244927,1766201439015,-500.0,0.00013698,2]
[399244928,1766201439024,-500.0,0.00013698,2]
[399244929,1766201439033,-500.0,0.00013698,2]
[399244930,1766201439043,-500.0,0.00013698,2]
[399244931,1766201439052,-500.0,0.00013698,2]
[399244932,1766201439061,-512.32849253,0.00013698,2]
[399244933,1766201439071,-500.0,0.00013698,2]
[399244934,1766201439080,-500.0,0.00013698,2]
[399244935,1766201439089,-513.58813655,0.00013698,2]
[399244936,1766201439098,-500.0,0.00013698,2]
[399244937,1766201439107,-500.0,0.00013698,2]
[399244938,1766201439121,-500.0,0.00013698,2]
[399244939,1766201439141,-500.0,0.00013698,2]
[399244940,1766201439156,-500.0,0.00013698,2]
[399244941,1766201439166,-512.34192822,0.00013698,2]
[399244942,1766201439177,-500.0,0.00013698,2]
[399244943,1766201439188,-500.0,0.00013698,2]
[399244944,1766201439198,-500.0,0.00013698,2]
[399244945,1766201439213,-500.0,0.00013698,2]
[399244946,1766201439233,-500.0,0.00013698,2]
[399244947,1766201439253,-500.0,0.00013698,2]
[399244948,1766201439272,-509.95949186,0.00013698,2]
[399244949,1766201439293,-300.74913693,0.00013698,2]
[399244950,1766201439303,-500.0,0.00013698,2]
[399244951,1766201439315,-500.0,0.00013698,2]
[399244952,1766201439325,-500.0,0.00013698,2]
[399244953,1766201439336,-545.71710874,0.00013698,2]
[399244954,1766201439346,-500.0,0.00013698,2]
[399244955,1766201439357,-500.0,0.00013698,2]
[399244956,1766201439366,-500.0,0.00013698,2]
[399244957,1766201439378,-500.0,0.00013698,2]
[399244958,1766201439389,-500.0,0.00013698,2]
[399244959,1766201439398,-300.95414794,0.00013698,2]
[399244960,1766201439409,-500.0,0.00013698,2]
[399244961,1766201439419,-500.0,0.00013698,2]
[399244962,1766201439430,-500.0,0.00013698,2]
[399244963,1766201439439,-500.0,0.00013698,2]
[399244964,1766201439450,-500.0,0.00013698,2]
[399244965,1766201439461,-500.0,0.00013698,2]
[399244966,1766201439471,-500.0,0.00013698,2]
[399244967,1766201439480,-500.0,0.00013698,2]
[399244968,1766201439490,-500.0,0.00013698,2]
[399244969,1766201439501,-500.0,0.00013698,2]
[399244970,1766201439512,-500.0,0.00013698,2]
[399244971,1766201439525,-500.0,0.00013698,2]
[399244972,1766201439534,-500.0,0.00013698,2]
[399244973,1766201439545,-500.0,0.00013698,2]
[399244974,1766201439555,-500.0,0.00013698,2]
[399244975,1766201439564,-535.57922455,0.00013698,2]
[399244976,1766201439576,-500.0,0.00013698,2]
[399244977,1766201439588,-500.0,0.00013698,2]
[399244978,1766201439598,-500.0,0.00013698,2]
[399244979,1766201439607,-500.0,0.00013698,2]
[399244980,1766201439619,-500.0,0.00013698,2]
[399244981,1766201439629,-500.0,0.00013698,2]
[399244982,1766201439639,-500.0,0.00013698,2]
[399244983,1766201439649,-500.0,0.00013698,2]
[399244984,1766201439660,-500.0,0.00013698,2]
[399244985,1766201439669,-500.0,0.00013698,2]
[399244986,1766201439681,-500.0,0.00013698,2]
[399244987,1766201439692,-500.0,0.00013698,2]
[399244988,1766201439703,-500.0,0.00013698,2]
[399244989,1766201439714,-500.0,0.00013698,2]
[399244990,1766201439724,-500.0,0.00013698,2]
[399244991,1766201439734,-500.0,0.00013698,2]
[399244992,1766201439743,-500.0,0.00013698,2]
[399244993,1766201439752,-500.0,0.00013698,2]
[399244994,1766201439762,-500.0,0.00013698,2]
[399244995,1766201439772,-500.0,0.00013698,2]
[399244996,1766201439783,-500.0,0.00013698,2]
[399244997,1766201439794,-500.0,0.00013698,2]
[399244998,1766201439804,-500.0,0.00013698,2]
[399244999,1766201439816,-500.0,0.00013698,2]
[399245000,1766201439826,-500.0,0.00013698,2]
[399245001,1766201439835,-500.0,0.00013698,2]
[399245002,1766201439843,-13722.89,0.00013699,2]
[399245003,1766201439854,-166.66,0.00013699,2]
[399245004,1766201439864,-445.92,0.00013699,2]
[399245005,1766201439873,-499.99,0.00013699,2]
[399245006,1766201439883,-150.99,0.00013699,2]
[399245007,1766201439893,-4999.99,0.00013699,2]
[399245008,1766201439903,-999.99,0.00013699,2]
[399245009,1766201439913,-67970.65,0.00013699,2]
[399245010,1766201439923,-9999.99,0.00013699,2]
[399245012,1766201439934,-9999.99,0.00013699,2]
[399245013,1766201439943,-8658.59,0.00013699,2]
[399245015,1766201439952,-9999.99,0.00013699,2]
[399245016,1766201439963,-21820.75,0.00013699,2]
[399245017,1766201439975,-3805.42,0.00013699,2]
[399245018,1766201439984,-1530.67,0.00013699,2]
[399245020,1766201439994,-150.99,0.00013699,2]
[399245022,1766201440003,-41275.4,0.00013699,2]
[399245024,1766201440012,-9999.99,0.00013699,2]
[399245025,1766201440022,-299.99,0.00013699,2]
[399245026,1766201440032,-9999.99,0.00013699,2]
[399245027,1766201440041,-500.0,0.00013699,2]
[399245028,1766201440050,-500.0,0.00013699,2]
[399245029,1766201440060,-500.0,0.00013699,2]
[399245030,1766201440070,-500.0,0.00013699,2]
[399245031,1766201440079,-500.0,0.00013699,2]
[399245032,1766201440089,-500.0,0.00013699,2]